[Event "Marshall CC Premier 04-2025"]
[Site "New York"]
[Date "2025.04.07"]
[Round "5.8"]
[White "Shankar, Pranav"]
[Black "Le, Quan Anh"]
[Result "1/2-1/2"]
[Annotator "RC"]
[ECO "A52"]
[WhiteElo "1966"]
[BlackElo "2111"]
[PlyCount "159"]
[EventDate "2025.01.03"]
[EventType "swiss"]
[EventCountry "USA"]
[SourceTitle "playchess.com"]
[Source "ChessBase"]
[SourceQuality "1"]
[TimeControl "5400+30"]

1. d4 {[%emt 0:05:43]} Nf6 {[%emt 0:04:19]} 2. c4 {[%emt 0:00:03]} e5 {[%emt 1:27:11]} 3. dxe5 {[%emt 0:00:13]} Ng4 {[%emt 0:00:00]} 4. Nf3 {[%emt 0:01:30]} Bc5 {[%emt 0:00:00]} 5. e3 {[%emt 0:00:27]} Nc6 {[%emt 0:00:00]} 6. a3 {[%emt 0:00:51]} a5 {[%emt 0:00:00]} 7. b3 {[%emt 0:01:51]} O-O {[%emt 0:00:00]} 8. Bb2 {[%emt 0:02:09]} Re8 {[%emt 0:03:00]} 9. Bd3 {[%emt 0:04:01]} Ngxe5 {[%emt 0:00:00]} 10. Nxe5 {[%emt 0:01:38]} Nxe5 {[%emt 0:00:00]} 11. Bxh7+ {[%emt 0:08:32]} Kxh7 {[%emt 0:00:00]} 12. Qh5+ {[%emt 0:00:10]} Kg8 {[%emt 0:00:00]} 13. Bxe5 {[%emt 0:00:44]} Qe7 {[%emt 0:00:00]} 14. Bf4 {[%emt 0:06:36]} Ra6 {[%emt 0:00:00]} 15. O-O {[%emt 0:01:44]} Rg6 {[%emt 0:00:00]} 16. Nc3 {[%emt 0:07:53]} c6 {[%emt 0:00:00]} 17. Na4 {[%emt 0:08:38]} d5 {[%emt 0:00:00]} 18. Nxc5 {[%emt 0:12:44]} Bg4 {[%emt 0:00:00]} 19. Qe5 {[%emt 0:02:17]} Qxe5 {[%emt 0:00:00]} 20. Bxe5 {[%emt 0:00:06]} Rxe5 {[%emt 0:00:00]} 21. Nd3 {[%emt 0:01:16]} Re8 {[%emt 0:00:00]} 22. Nf4 {[%emt 0:01:00]} Rd6 {[%emt 0:00:00]} 23. h3 {[%emt 0:01:05]} g5 {[%emt 0:00:00]} 24. c5 {[%emt 0:01:11]} Rd7 {[%emt 0:00:00]} 25. hxg4 {[%emt 0:01:13]} gxf4 {[%emt 0:00:00]} 26. exf4 {[%emt 0:00:20]} Re4 {[%emt 0:00:00]} 27. g3 {[%emt 0:00:37]} Rde7 {[%emt 0:00:00]} 28. Rab1 {[%emt 0:02:17]} Re2 {[%emt 0:00:00]} 29. b4 {[%emt 0:01:36]} Ra2 {[%emt 0:00:00]} 30. bxa5 {[%emt 0:04:45]} Rxa3 {[%emt 0:00:00]} 31. Ra1 {[%emt 0:00:06]} Rc3 {[%emt 0:00:00]} 32. Rfc1 {[%emt 0:00:28]} Rxc1+ {[%emt 0:00:00]} 33. Rxc1 {[%emt 0:00:07]} Re4 {[%emt 0:00:00]} 34. Rb1 {[%emt 0:00:40]} Ra4 {[%emt 0:00:00]} 35. Rxb7 {[%emt 0:00:37]} Rxa5 {[%emt 0:00:00]} 36. Kf1 {[%emt 0:02:11]} Rxc5 {[%emt 0:00:00]} 37. Ke2 {[%emt 0:00:20]} Rc4 {[%emt 0:00:00]} 38. Rd7 {[%emt 0:01:15]} Kf8 {[%emt 0:00:00]} 39. g5 {[%emt 0:00:22]} Ke8 {[%emt 0:00:00]} 40. Rc7 {[%emt 0:00:07]} c5 {[%emt 0:00:00]} 41. f5 {[%emt 0:00:46]} Rc2+ {[%emt 0:00:00]} 42. Ke1 {[%emt 0:03:08]} d4 {[%emt 0:00:00]} 43. f6 {[%emt 0:00:19]} c4 {[%emt 0:00:00]} 44. Re7+ {[%emt 0:01:48]} Kd8 {[%emt 0:00:00]} 45. Re4 {[%emt 0:07:21]} d3 {[%emt 0:00:00]} 46. g6 {[%emt 0:01:50]} c3 {[%emt 0:00:00]} 47. Kf1 {[%emt 0:04:18]} Rc1+ {[%emt 0:00:00]} 48. Kg2 {[%emt 0:00:06]} d2 {[%emt 0:00:00]} 49. gxf7 {[%emt 0:03:37]} Rg1+ {[%emt 0:00:00]} 50. Kxg1 {[%emt 0:00:36]} d1=Q+ {[%emt 0:00:00]} 51. Kg2 {[%emt 0:00:08]} Qd6 {[%emt 0:00:00]} 52. Re8+ {[%emt 0:00:28]} Kd7 {[%emt 0:00:00]} 53. f8=Q {[%emt 0:00:23]} Qxf8 {[%emt 0:00:00]} 54. Rxf8 {[%emt 0:00:07]} c2 {[%emt 0:00:00]} 55. Rc8 {[%emt 0:00:26]} Kxc8 {[%emt 0:00:00]} 56. f7 {[%emt 0:00:04]} c1=Q {[%emt 0:00:00]} 57. f8=Q+ {[%emt 0:00:07]} Kd7 {[%emt 0:00:00]} 58. Qf7+ {[%emt 0:00:33]} Kd8 {[%emt 0:00:00]} 59. g4 {[%emt 0:00:20]} Qc6+ {[%emt 0:00:00]} 60. Qf3 {[%emt 0:00:07]} Qg6 {[%emt 0:00:00]} 61. Qf5 {[%emt 0:01:01]} Qc6+ {[%emt 0:00:00]} 62. Kg3 {[%emt 0:00:04]} Qc3+ {[%emt 0:00:21]} 63. Kh4 {[%emt 0:00:27]} Qh8+ {[%emt 0:00:27]} 64. Qh5 {[%emt 0:00:08]} Qd4 {[%emt 0:00:22]} 65. Qg5+ {[%emt 0:00:34]} Kd7 {[%emt 0:00:46]} 66. Qf5+ {[%emt 0:00:10]} Ke7 {[%emt 0:00:35]} 67. f4 {[%emt 0:00:39]} Qf2+ {[%emt 0:00:48]} 68. Kh5 {[%emt 0:00:30]} Qh2+ {[%emt 0:00:18]} 69. Kg6 {[%emt 0:00:08]} Qa2 {[%emt 0:00:47]} 70. Qf6+ {[%emt 0:00:25]} Ke8 {[%emt 0:00:18]} 71. f5 {[%emt 0:00:41]} Qc2 {[%emt 0:01:31]} 72. Qe6+ {[%emt 0:00:18]} Kd8 {[%emt 0:00:09]} 73. g5 {[%emt 0:00:15]} Qb1 {[%emt 0:01:02]} 74. Qd5+ {[%emt 0:00:22]} Ke8 {[%emt 0:00:24]} 75. Kg7 {[%emt 0:00:39]} Qa1+ {[%emt 0:06:59]} 76. f6 {[%emt 0:00:20]} Qc3 {[%emt 0:00:25]} 77. Qe6+ {[%emt 0:00:22]} Kd8 {[%emt 0:00:06]} 78. g6 {[%emt 0:00:45]} Qc6 {[%emt 0:02:09]} 79. Qe7+ {[%emt 0:00:22]} Kc8 {[%emt 0:00:06]} 80. f7 {[%emt 0:00:20]} 1/2-1/2

[Event "Marshall CC Premier 04-2025"]
[Site "New York"]
[Date "2025.04.07"]
[Round "5.9"]
[White "Smith, Daniel"]
[Black "Berg, George"]
[Result "1-0"]
[Annotator "RC"]
[ECO "B96"]
[WhiteElo "2006"]
[BlackElo "1872"]
[PlyCount "51"]
[EventDate "2025.01.03"]
[EventType "swiss"]
[EventCountry "USA"]
[SourceTitle "playchess.com"]
[Source "ChessBase"]
[SourceQuality "1"]
[TimeControl "5400+30"]

1. e4 {[%emt 0:00:04]} c5 {[%emt 0:00:03]} 2. Nf3 {[%emt 0:00:10]} d6 {[%emt 0:00:05]} 3. d4 {[%emt 0:00:13]} cxd4 {[%emt 0:00:05]} 4. Nxd4 {[%emt 0:00:07]} Nf6 {[%emt 0:00:04]} 5. Nc3 {[%emt 0:00:20]} a6 {[%emt 0:00:06]} 6. Bg5 {[%emt 0:00:44]} e6 {[%emt 0:00:07]} 7. f4 {[%emt 0:00:11]} Nbd7 {[%emt 0:00:07]} 8. Qf3 {[%emt 0:00:32]} Qc7 {[%emt 0:00:06]} 9. O-O-O {[%emt 0:01:27]} b5 {[%emt 0:00:31]} 10. e5 {[%emt 0:10:44]} Bb7 {[%emt 0:00:12]} 11. Qh3 {[%emt 0:00:10]} dxe5 {[%emt 0:00:21]} 12. Nxe6 {[%emt 0:00:54]} fxe6 {[%emt 0:00:10]} 13. Qxe6+ {[%emt 0:00:26]} Be7 {[%emt 0:00:33]} 14. Bxb5 {[%emt 0:06:13]} axb5 {[%emt 0:01:19]} 15. Nxb5 {[%emt 0:00:24]} Qc6 {[%emt 0:00:08]} 16. Nd6+ {[%emt 0:06:24]} Kd8 {[%emt 0:00:07]} 17. fxe5 {[%emt 0:04:36]} Kc7 {[%emt 0:03:48]} 18. Qxe7 {[%emt 0:03:34]} Nd5 {[%emt 0:01:14]} 19. Rxd5 {[%emt 0:09:23]} Qxd5 {[%emt 0:04:53]} 20. Rd1 {[%emt 0:04:40]} Qxe5 {[%emt 0:00:47]} 21. Ne8+ {[%emt 0:09:07]} Rhxe8 {[%emt 0:00:31]} 22. Qxd7+ {[%emt 0:01:34]} Kb6 {[%emt 0:06:44]} 23. Rd6+ {[%emt 0:06:51]} Ka7 {[%emt 0:00:08]} 24. Bd2 {[%emt 0:00:38]} Rad8 {[%emt 0:01:08]} 25. Qa4+ {[%emt 0:00:35]} Kb8 {[%emt 0:00:06]} 26. Rxd8+ {[%emt 0:00:21]} 1-0

[Event "Marshall CC Premier 04-2025"]
[Site "New York"]
[Date "2025.04.07"]
[Round "5.10"]
[White "Yang, Lucas"]
[Black "Kurup, Siddharth"]
[Result "1/2-1/2"]
[Annotator "RC"]
[ECO "D37"]
[WhiteElo "1899"]
[BlackElo "1965"]
[PlyCount "72"]
[EventDate "2025.01.03"]
[EventType "swiss"]
[EventCountry "USA"]
[SourceTitle "playchess.com"]
[Source "ChessBase"]
[SourceQuality "1"]
[TimeControl "5400+30"]

1. d4 {[%emt 0:07:06]} d5 {[%emt 0:00:02]} 2. c4 {[%emt 0:00:13]} e6 {[%emt 0:00:18]} 3. Nc3 {[%emt 0:00:04]} a6 {[%emt 0:00:15]} 4. cxd5 {[%emt 0:00:04]} exd5 {[%emt 0:00:09]} 5. Nf3 {[%emt 0:00:01]} Nf6 {[%emt 0:00:45]} 6. Bg5 {[%emt 0:00:07]} Be6 {[%emt 0:00:07]} 7. e3 {[%emt 0:00:13]} Nbd7 {[%emt 0:00:22]} 8. Bd3 {[%emt 0:00:07]} c6 {[%emt 0:00:09]} 9. O-O {[%emt 0:00:09]} Bd6 {[%emt 0:00:12]} 10. Bf4 {[%emt 0:00:05]} Qc7 {[%emt 0:00:24]} 11. Bxd6 {[%emt 0:00:05]} Qxd6 {[%emt 0:00:08]} 12. h3 {[%emt 0:00:05]} O-O {[%emt 1:33:39]} 13. Re1 {[%emt 0:00:09]} Rfe8 {[%emt 0:00:00]} 14. Qc2 {[%emt 0:01:27]} h6 {[%emt 0:00:00]} 15. Rad1 {[%emt 0:06:36]} Rac8 {[%emt 0:00:00]} 16. Na4 {[%emt 0:05:44]} Ne4 {[%emt 0:00:00]} 17. Bxe4 {[%emt 0:07:18]} dxe4 {[%emt 0:00:00]} 18. Nd2 {[%emt 0:00:06]} Bd5 {[%emt 0:00:00]} 19. Nc5 {[%emt 0:02:31]} Nxc5 {[%emt 0:00:00]} 20. dxc5 {[%emt 0:00:30]} Qe6 {[%emt 0:00:00]} 21. Nb3 {[%emt 0:02:41]} Bxb3 {[%emt 0:00:00]} 22. Qxb3 {[%emt 0:00:43]} Qxb3 {[%emt 0:00:00]} 23. axb3 {[%emt 0:00:01]} Rcd8 {[%emt 0:00:00]} 24. b4 {[%emt 0:02:23]} f5 {[%emt 0:00:00]} 25. Kf1 {[%emt 0:00:53]} Kf7 {[%emt 0:00:00]} 26. Ke2 {[%emt 0:00:06]} Kf6 {[%emt 0:00:00]} 27. Rxd8 {[%emt 0:11:16]} Rxd8 {[%emt 0:00:00]} 28. Rd1 {[%emt 0:00:04]} Rxd1 {[%emt 0:00:00]} 29. Kxd1 {[%emt 0:00:01]} Ke5 {[%emt 0:00:00]} 30. Kc2 {[%emt 0:00:24]} Kd5 {[%emt 0:00:00]} 31. Kc3 {[%emt 0:00:53]} g5 {[%emt 0:00:00]} 32. g3 {[%emt 0:07:25]} h5 {[%emt 0:00:00]} 33. Kb3 {[%emt 0:10:39]} g4 {[%emt 0:00:00]} 34. h4 {[%emt 0:00:54]} Ke6 {[%emt 0:00:00]} 35. Ka4 {[%emt 0:01:22]} Kd7 {[%emt 0:00:00]} 36. Ka5 {[%emt 0:00:30]} Kc7 {[%emt 0:00:00]} 1/2-1/2